Workbook

Sheet MSU
B1: Markku Vahvelainen | F1: 7.8.1965
B2: SUPERPESIS | E2: Runkosarja | I2: Kärkilyönnit (KL), pesänvälit | P2: Runkosarja TOP-30 | U2: Ylempi loppusarja | AB2: Ylempi loppusarja TOP-10 | AG2: Play off, voitot, voittoprosentti | AL2: Arvo-ottelut | AP2: Mitalit
B3: Vuosi | C3: Sija | D3: Seura | E3: OTT | F3: KUN | G3: LÖI | H3: TOI | I3: KL | J3: 0 > 1 | K3: 1 > 2 | L3: 2 > 3 | M3: 3 > k | N3: KL-% | P3: LÖI | Q3: TOI | R3: L+T | S3: KL | U3: OTT | V3: KUN | W3: LÖI | X3: TOI | Y3: KL | Z3: KL-% | AB3: LÖI | AC3: TOI | AD3: L+T | AE3: KL | AG3: Puolivälierät | AH3: Välierät | AI3: Pronssi | AJ3: Finaalit | AL3: IL | AM3: LL | AN3: Cup | AO3: K | AP3: H | AQ3: P
B4: 1986 | C4: 4. | D4: Tahko 2 | F4: suomensarja
B5: 1986 | C5: 7. | D5: Tahko | E5: 7 | F5: 0 | G5: 2 | H5: 2 | I5: 15 | J5: 5 | K5: 3 | L5: 5 | M5: 2 | N5: 46.9 %
B6: 1987 | C6: 3. | D6: Tahko | E6: 16 | F6: 0 | G6: 12 | H6: 10 | I6: 30 | J6: 8 | K6: 5 | L6: 5 | M6: 12 | N6: 41.1 % | U6: 1 | V6: 0 | W6: 0 | X6: 0 | Y6: 1 | Z6: 100.0 % | AG6: 10-6 ViVe | AN6: 1 | AQ6: 1
B7: 1988 | C7: 8. | D7: Tahko | E7: 19 | F7: 3 | G7: 4 | H7: 10 | I7: 44 | J7: 17 | K7: 7 | L7: 13 | M7: 7 | N7: 39.3 % | U7: 2 | V7: 0 | W7: 0 | X7: 0 | Y7: 4 | Z7: 33.3 % | AG7: 0-2 KaMa
B8: 1989 | C8: 3. | D8: Tahko | E8: 18 | F8: 1 | G8: 1 | H8: 5 | I8: 27 | J8: 14 | K8: 7 | L8: 4 | M8: 2 | N8: 36.5 % | U8: 6 | V8: 1 | W8: 6 | X8: 4 | Y8: 17 | Z8: 39.5 % | AB8: 8. | AG8: 2-1 SoJy | AH8: 0-2 AA | AI8: 29-9 VM | AQ8: 1
B9: 1990 | C9: 6. | D9: RPL | F9: ykkössarja
B10: 1991 | C10: 3. | D10: RPL | F10: ykkössarja
B11: 1992 | C11: 13. | D11: RPL | E11: 25 | F11: 0 | G11: 23 | H11: 1 | I11: 77 | J11: 11 | K11: 16 | L11: 27 | M11: 23 | N11: 44.0 %
B12: Yhteensä | E12: 85 | F12: 4 | G12: 42 | H12: 28 | I12: 193 | J12: 55 | K12: 38 | L12: 54 | M12: 46 | N12: 41.4 % | P12: 0-0-0 | Q12: 0-0-0 | R12: 0-0-0 | S12: 0-0-0 | U12: 9 | V12: 1 | W12: 6 | X12: 4 | Y12: 22 | Z12: 39.3 % | AA12: =SUM(AA4:AA11) -> 0.0 % | AB12: 0-0-0 | AC12: 0-0-0 | AD12: 0-0-0 | AE12: 0-0-0 | AG12: 2/3 | AH12: 0/1 | AI12: 1/1 | AJ12: 0/0 | AL12: 0 | AM12: 0 | AN12: 1 | AO12: 0 | AP12: 0 | AQ12: 2
AG13: 66.7 % | AH13: 0.0 % | AI13: 0.0 % | AJ13: 0.0 %
B14: Pesispörssi | D14: 196.3
B16: URA SUPERISSA | E16: OTT | F16: KUN | G16: LÖI | H16: TOI | I16: KL | K16: ka/L | L16: ka/T | M16: ka/KL | N16: KL-% | P16: ENSIMMÄISET RUNKOSARJASSA | AG16: ENSIMMÄISET PUDOTUSPELEISSÄ | AL16: YLEISÖ
B17: Runkosarja | E17: 85 | F17: 4 | G17: 42 | H17: 28 | I17: 193 | K17: 0.54 | L17: 0.33 | M17: 2.27 | N17: 41.4 % | P17: Ottelu | R17: 01.09. 1985 KaMa - Tahko 12-6 | Y17: 1. ottelu | AB17: 20 v 0 kk 25 pv | AG17: Ottelu | AH17: 1. 13.08. 1987 ViVe - Tahko 5-9 | AL17: 2047 | AN17: 22 v 0 kk 6 pv
B18: Ylempi loppusarja | E18: 9 | F18: 1 | G18: 6 | H18: 4 | I18: 22 | K18: 0.78 | L18: 0.44 | M18: 2.44 | N18: 39.3 % | P18: Lyöty | R18: 03.08. 1986 KiU - Tahko 12-11 | Y18: 6. ottelu | AB18: 20 v 11 kk 27 pv | AG18: Lyöty | AH18: 4. 20.08. 1989 SoJy - Tahko 2-8 | AL18: 2045 | AN18: 24 v 0 kk 13 pv
B19: Alempi loppusarja | E19: 14 | F19: 0 | G19: 5 | H19: 5 | I19: 31 | K19: 0.36 | L19: 0.36 | M19: 2.21 | N19: 34.8 % | P19: Tuotu | R19: 01.09. 1985 KaMa - Tahko 12-6 | Y19: 1. ottelu | AB19: 20 v 0 kk 25 pv | AG19: Tuotu | AH19: 8. 02.09. 1989 VM - Tahko 6-11 | AL19: 2402 | AN19: 24 v 0 kk 26 pv
B20: KAIKKI | E20: 108 | F20: 5 | G20: 53 | H20: 37 | I20: 246 | K20: 0.54 | L20: 0.34 | M20: 2.28 | N20: 40.2 % | P20: Kunnari | R20: 1988 | AG20: Kunnari | AH20: 9. 03.09. 1989 Tahko - VM 18-3 | AL20: 1844 | AN20: 24 v 0 kk 27 pv
B22: Seurat | D22: Tahko = Hyvinkään Tahko (1915)
D23: RPL = Riihimäen Pallonlyöjät (1924)

Sheet MYP, MSS
B1: Markku Vahvelainen | F1: 7.8.1965
B2: YKKÖSPESIS | E2: Runkosarja | L2: Runkosarja TOP-10 | Q2: Jatkosarjat | X2: SUOMENSARJA | AA2: Runkosarja | AH2: Runkosarja TOP-10 | AM2: Jatkosarjat
B3: Vuosi | C3: Sija | D3: Seura | E3: OTT | F3: KUN | G3: LÖI | H3: TOI | I3: KL | J3: KL-% | L3: LÖI | M3: TOI | N3: L+T | O3: KL | Q3: OTT | R3: KUN | S3: LÖI | T3: TOI | U3: KL | V3: KL-% | X3: Vuosi | Y3: Sija | Z3: Seura | AA3: OTT | AB3: KUN | AC3: LÖI | AD3: TOI | AE3: KL | AF3: KL-% | AH3: LÖI | AI3: TOI | AJ3: L+T | AK3: KL | AM3: OTT | AN3: KUN | AO3: LÖI | AP3: TOI | AQ3: KL | AR3: KL-%
X4: 1986 | Y4: 4. | Z4: Tahko 2 | AA4: 12 | AB4: 0 | AC4: 13 | AD4: 13
B6: 1990 | C6: 6. | D6: RPL | E6: 22 | F6: 1 | G6: 26 | H6: 14
B7: 1991 | C7: 3. | D7: RPL | E7: 22 | F7: 1 | G7: 39 | H7: 15 | I7: 104 | L7: 5.
B8: YHTEENSÄ | E8: =SUM(E4:E7) -> 44 | F8: =SUM(F4:F7) -> 2 | G8: =SUM(G4:G7) -> 65 | H8: =SUM(H4:H7) -> 29 | I8: =SUM(I4:I7) -> 104 | J8: 0.0 % | K8: =SUM(K4:K7) -> 0 | Q8: =SUM(Q4:Q7) -> 0 | R8: =SUM(R4:R7) -> 0 | S8: =SUM(S4:S7) -> 0 | T8: =SUM(T4:T7) -> 0 | U8: =SUM(U4:U7) -> 0 | V8: 0.0 % | W8: =SUM(W4:W7) -> 0 | X8: YHTEENSÄ | AA8: =SUM(AA4:AA7) -> 12 | AB8: =SUM(AB4:AB7) -> 0 | AC8: =SUM(AC4:AC7) -> 13 | AD8: =SUM(AD4:AD7) -> 13 | AE8: =SUM(AE4:AE7) -> 0 | AF8: 0.0 % | AG8: =SUM(AG4:AG7) -> 0 | AM8: =SUM(AM4:AM7) -> 0 | AN8: =SUM(AN4:AN7) -> 0 | AO8: =SUM(AO4:AO7) -> 0 | AP8: =SUM(AP4:AP7) -> 0 | AQ8: =SUM(AQ4:AQ7) -> 0 | AR8: 0.0 % | AS8: =SUM(AS4:AS7) -> 0
B10: KAIKKI OTTELUT | E10: OTT | F10: KUN | G10: LÖI | H10: TOI | I10: KL | J10: KL-% | L10: ka/L | M10: ka/T | N10: ka/l+t | O10: ka/kl | R10: Seurat | T10: Tahko = Hyvinkään Tahko (1915)
B11: SUPERPESIS | E11: 108 | F11: 5 | G11: 53 | H11: 37 | I11: 246 | J11: 40.2 % | K11: =PRODUCT(I11/J11) -> 611.9402985 | L11: =PRODUCT((F11+G11)/E11) -> 0.54 | M11: =PRODUCT(H11/E11) -> 0.34 | N11: =PRODUCT((F11+G11+H11)/E11) -> 0.88 | O11: =PRODUCT(I11/E11) -> 2.28 | T11: RPL = Riihimäen Pallonlyöjät (1924)
B12: YKKÖSPESIS | E12: =PRODUCT(E8+Q8) -> 44 | F12: =PRODUCT(F8+R8) -> 2 | G12: =PRODUCT(G8+S8) -> 65 | H12: =PRODUCT(H8+T8) -> 29 | I12: =PRODUCT(I8+U8) -> 104 | J12: 0.0 % | K12: =PRODUCT(K8+W8) -> 0 | L12: =PRODUCT((F12+G12)/E12) -> 1.52 | M12: =PRODUCT(H12/E12) -> 0.66 | N12: =PRODUCT((F12+G12+H12)/E12) -> 2.18 | O12: =PRODUCT(I12/22) -> 4.73
B13: SUOMENSARJA | E13: =PRODUCT(AA8+AM8) -> 12 | F13: =PRODUCT(AB8+AN8) -> 0 | G13: =PRODUCT(AC8+AO8) -> 13 | H13: =PRODUCT(AD8+AP8) -> 13 | I13: =PRODUCT(AE8+AQ8) -> 0 | J13: 0.0 % | K13: =PRODUCT(AG8+AS8) -> 0 | L13: =PRODUCT((F13+G13)/E13) -> 1.08 | M13: =PRODUCT(H13/E13) -> 1.08 | N13: =PRODUCT((F13+G13+H13)/E13) -> 2.17 | O13: =PRODUCT(I13/E13) -> 0.00
B14: YHTEENSÄ | E14: =SUM(E11:E13) -> 164 | F14: =SUM(F11:F13) -> 7 | G14: 131 | H14: 79 | I14: 350 | J14: 0.0 % | K14: =SUM(K11:K13) -> 611.9402985 | L14: =PRODUCT((F14+G14)/E14) -> 0.84 | M14: =PRODUCT(H14/E14) -> 0.48 | N14: =PRODUCT((F14+G14+H14)/E14) -> 1.32 | O14: =PRODUCT(I14/130) -> 2.69

Sheet Arvo-ottelut
B1: ITÄ - LÄNSI - KORTTI
B2: Markku Vahvelainen | C2: 7.8.1965
B3: B-POJAT | C3: Itä - Länsi, tulos | D3: Joukkue | E3: Seura | G3: V | H3: T | I3: H | J3: Up. | K3: Lj. | L3: Palk. | M3: O | N3: K | O3: L | P3: T | Q3: KL | R3: 1 | S3: 2 | T3: 3 | U3: k | V3: KL-% | W3: Pelinjohtaja | X3: Yleisöä
B4: 24.07. 1982 Seinäjoki | C4: 14-4 | D4: Länsi | E4: Tahko | I4: 1 | J4: 3k | K4: 6 | M4: 1 | O4: 1 | Q4: 2/5 | R4: 1/2 | U4: 1/3 | V4: 40.0 % | W4: Jouko Sivunen | X4: 300

Sheet Kärkilyönnit
B1: KÄRKILYÖNNIT RUNKOSARJASSA | V1: VUOSITTAISET SIJOITUKSET TOP - 30
G2: 0 > 1 | J2: 1 > 2 | M2: 2 > 3 | P2: 3 > k | S2: Yhteensä
B3: Vuosi | C3: Sija | D3: Seura | E3: OTT | F3: KL | G3: YHT | H3: % | I3: KL | J3: YHT | K3: % | L3: KL | M3: YHT | N3: % | O3: KL | P3: YHT | Q3: % | R3: KL | S3: YHT | T3: % | V3: Vuosi | W3: Sija | X3: Seura | Y3: 0 > 1 | Z3: 1 > 2 | AA3: 2 > 3 | AB3: 3 > k | AC3: KL
B4: 1986 | C4: 8. | D4: Tahko | E4: 7 | F4: 5 | G4: 13 | H4: =PRODUCT(F4/G4) -> 38.5 % | I4: 3 | J4: 5 | K4: =PRODUCT(I4/J4) -> 60.0 % | L4: 5 | M4: 9 | N4: =PRODUCT(L4/M4) -> 55.6 % | O4: 2 | P4: 5 | Q4: =PRODUCT(O4/P4) -> 40.0 % | R4: 15 | S4: =PRODUCT(G4+J4+M4+P4) -> 32 | T4: 46.9 % | V4: 1986 | W4: 8. | X4: Tahko
B5: 1987 | C5: 2. | D5: Tahko | E5: 16 | F5: 8 | I5: 5 | L5: 5 | O5: 12 | R5: =PRODUCT(F5+I5+L5+O5) -> 30 | S5: 73 | T5: 41.1 % | V5: 1987 | W5: 2. | X5: Tahko
B6: 1988 | C6: 7. | D6: Tahko | E6: 19 | F6: 17 | G6: 41 | H6: =PRODUCT(F6/G6) -> 41.5 % | I6: 7 | J6: 25 | K6: =PRODUCT(I6/J6) -> 28.0 % | L6: 13 | M6: 25 | N6: =PRODUCT(L6/M6) -> 52.0 % | O6: 7 | P6: 21 | Q6: =PRODUCT(O6/P6) -> 33.3 % | R6: =PRODUCT(F6+I6+L6+O6) -> 44 | S6: =PRODUCT(G6+J6+M6+P6) -> 112 | T6: 39.3 % | V6: 1988 | W6: 7. | X6: Tahko
B7: 1989 | C7: 5. | D7: Tahko | E7: 18 | F7: 14 | I7: 7 | L7: 4 | O7: 2 | R7: =PRODUCT(F7+I7+L7+O7) -> 27 | S7: 74 | T7: 36.5 % | V7: 1989 | W7: 5. | X7: Tahko
B8: **** | V8: ****
B9: 1992 | C9: 13. | D9: RPL | E9: 25 | F9: 11 | G9: 33 | H9: =PRODUCT(F9/G9) -> 33.3 % | I9: 16 | J9: 32 | K9: =PRODUCT(I9/J9) -> 50.0 % | L9: 27 | M9: 46 | N9: =PRODUCT(L9/M9) -> 58.7 % | O9: 23 | P9: 64 | Q9: =PRODUCT(O9/P9) -> 35.9 % | R9: 77 | S9: =PRODUCT(G9+J9+M9+P9) -> 175 | T9: 44.0 % | V9: 1992 | W9: 13. | X9: RPL
B10: Yhteensä | E10: =SUM(E4:E9) -> 85 | F10: =SUM(F4:F9)-22 -> 33 | G10: =SUM(G4:G9) -> 87 | H10: =PRODUCT(F10/G10) -> 37.9 % | I10: =SUM(I4:I9)-12 -> 26 | J10: =SUM(J4:J9) -> 62 | K10: =PRODUCT(I10/J10) -> 41.9 % | L10: =SUM(L4:L9)-9 -> 45 | M10: =SUM(M4:M9) -> 80 | N10: =PRODUCT(L10/M10) -> 56.3 % | O10: =SUM(O4:O9)-19 -> 27 | P10: =SUM(P4:P9) -> 90 | Q10: =PRODUCT(O10/P10) -> 30.0 % | R10: =SUM(R4:R9) -> 193 | S10: =SUM(S4:S9) -> 466 | T10: =PRODUCT(R10/S10) -> 41.4 %
B12: KÄRKILYÖNNIT YLEMMISSÄ PUDOTUSPELEISSÄ | V12: VUOSITTAISET SIJOITUKSET TOP - 30
G13: 0 > 1 | J13: 1 > 2 | M13: 2 > 3 | P13: 3 > k | S13: Yhteensä
B14: Vuosi | C14: Sija | D14: Seura | E14: OTT | F14: KL | G14: YHT | H14: % | I14: KL | J14: YHT | K14: % | L14: KL | M14: YHT | N14: % | O14: KL | P14: YHT | Q14: % | R14: KL | S14: YHT | T14: % | V14: Vuosi | W14: Sija | X14: Seura | Y14: 0 > 1 | Z14: 1 > 2 | AA14: 2 > 3 | AB14: 3 > k | AC14: KL
B15: 1986 | C15: 7. | D15: Tahko | V15: 1986 | W15: 7. | X15: Tahko
B16: 1987 | C16: 3. | D16: Tahko | E16: 1 | F16: 1 | G16: 1 | H16: 100.0 % | I16: 0 | J16: 0 | K16: 0.0 % | L16: 0 | M16: 0 | N16: 0.0 % | O16: 0 | P16: 0 | Q16: 0.0 % | R16: 1 | S16: 1 | T16: 100.0 % | V16: 1987 | W16: 3. | X16: Tahko
B17: 1988 | C17: 8. | D17: Tahko | E17: 2 | F17: 2 | G17: 3 | H17: 66.7 % | I17: 1 | J17: 4 | K17: 25.0 % | L17: 1 | M17: 4 | N17: 25.0 % | O17: 0 | P17: 1 | Q17: 0.0 % | R17: 4 | S17: 12 | T17: 33.3 % | V17: 1988 | W17: 8. | X17: Tahko
B18: 1989 | C18: 3. | D18: Tahko | E18: 6 | F18: 4 | G18: 11 | H18: 36.4 % | I18: 2 | J18: 10 | K18: 20.0 % | L18: 4 | M18: 9 | N18: 44.4 % | O18: 7 | P18: 13 | Q18: 53.8 % | R18: 17 | S18: 43 | T18: 39.5 % | V18: 1989 | W18: 3. | X18: Tahko | AA18: 28. | AB18: 8.
B19: Yhteensä | E19: =SUM(E13:E18) -> 9 | F19: =SUM(F15:F18) -> 7 | G19: =SUM(G15:G18) -> 15 | H19: =PRODUCT(F19/G19) -> 46.7 % | I19: =SUM(I15:I18) -> 3 | J19: =SUM(J15:J18) -> 14 | K19: =PRODUCT(I19/J19) -> 21.4 % | L19: =SUM(L15:L18) -> 5 | M19: =SUM(M15:M18) -> 13 | N19: =PRODUCT(L19/M19) -> 38.5 % | O19: =SUM(O15:O18) -> 7 | P19: =SUM(P15:P18) -> 14 | Q19: =PRODUCT(O19/P19) -> 50.0 % | R19: =SUM(R15:R18) -> 22 | S19: =SUM(S15:S18) -> 56 | T19: =PRODUCT(R19/S19) -> 39.3 %
B21: KÄRKILYÖNNIT
G22: 0 > 1 | J22: 1 > 2 | M22: 2 > 3 | P22: 3 > k | S22: Yhteensä
E23: OTT | F23: KL | G23: YHT | H23: % | I23: KL | J23: YHT | K23: % | L23: KL | M23: YHT | N23: % | O23: KL | P23: YHT | Q23: % | R23: KL | S23: YHT | T23: %
B24: RUNKOSARJA | E24: =PRODUCT(E10) -> 85 | F24: =PRODUCT(F10) -> 33 | G24: =PRODUCT(G10) -> 87 | H24: =PRODUCT(H10) -> 37.9 % | I24: =PRODUCT(I10) -> 26 | J24: =PRODUCT(J10) -> 62 | K24: =PRODUCT(K10) -> 41.9 % | L24: =PRODUCT(L10) -> 45 | M24: =PRODUCT(M10) -> 80 | N24: =PRODUCT(N10) -> 56.3 % | O24: =PRODUCT(O10) -> 27 | P24: =PRODUCT(P10) -> 90 | Q24: =PRODUCT(Q10) -> 30.0 % | R24: =PRODUCT(R10) -> 193 | S24: =PRODUCT(S10) -> 466 | T24: =PRODUCT(T10) -> 41.4 %
B25: PLAY OFF | E25: =PRODUCT(E19) -> 9 | F25: =PRODUCT(F19) -> 7 | G25: 15 | H25: 46.7 % | I25: 3 | J25: 14 | K25: 21.4 % | L25: 5 | M25: 13 | N25: 38.5 % | O25: 7 | P25: 14 | Q25: 50.0 % | R25: 22 | S25: 56 | T25: 39.3 %
